[Event "*** Titled Tuesday Blitz"]
[Site "Chess.com"]
[Date "2020.10.27"]
[Round "4"]
[White "oogee"]
[Black "shriyanasmallya"]
[Result "0-1"]
[WhiteElo "2179"]
[BlackElo "1678"]
[TimeControl "180+1"]
[EndTime "10:36:43 PDT"]
[Termination "shriyanasmallya won by checkmate"]

1. d4 {[%clk 0:02:56]} 1... d5 {[%clk 0:02:59.4]} 2. c4 {[%clk 0:02:55.6]} 2...
e6 {[%clk 0:02:59]} 3. Nc3 {[%clk 0:02:55.8]} 3... Nf6 {[%clk 0:02:59]} 4. cxd5
{[%clk 0:02:56.1]} 4... Nxd5 {[%clk 0:02:57.9]} 5. e4 {[%clk 0:02:54.8]} 5...
Nxc3 {[%clk 0:02:57.1]} 6. bxc3 {[%clk 0:02:55]} 6... Be7 {[%clk 0:02:55.8]} 7.
Nf3 {[%clk 0:02:55.2]} 7... O-O {[%clk 0:02:54]} 8. Bd3 {[%clk 0:02:55.2]} 8...
f5 {[%clk 0:02:53.9]} 9. exf5 {[%clk 0:02:54]} 9... exf5 {[%clk 0:02:54.6]} 10.
Qb3+ {[%clk 0:02:53.5]} 10... Kh8 {[%clk 0:02:51.5]} 11. Ne5 {[%clk 0:02:53.3]}
11... Qe8 {[%clk 0:02:46.6]} 12. O-O {[%clk 0:02:52.4]} 12... Nd7 {[%clk
0:02:42]} 13. Bf4 {[%clk 0:02:44.7]} 13... Nxe5 {[%clk 0:02:40.2]} 14. Bxe5
{[%clk 0:02:43.7]} 14... Bf6 {[%clk 0:02:37.9]} 15. Bxc7 {[%clk 0:02:43.5]}
15... Qc6 {[%clk 0:02:31.8]} 16. Qb4 {[%clk 0:02:18.5]} 16... Be6 {[%clk
0:02:18.5]} 17. Bf4 {[%clk 0:02:17.3]} 17... a5 {[%clk 0:02:16.2]} 18. Qa3
{[%clk 0:02:02]} 18... g5 {[%clk 0:02:06.9]} 19. Be5 {[%clk 0:01:54.3]} 19...
Bxe5 {[%clk 0:02:05.6]} 20. dxe5 {[%clk 0:01:54.1]} 20... f4 {[%clk 0:02:02.2]}
21. Rfe1 {[%clk 0:01:49]} 21... f3 {[%clk 0:01:48.7]} 22. Qe7 {[%clk 0:01:38.2]}
22... Rf7 {[%clk 0:01:41.6]} 23. Qxg5 {[%clk 0:01:34]} 23... Rg8 {[%clk
0:01:40.7]} 24. Qh4 {[%clk 0:01:24.5]} 24... Rxg2+ {[%clk 0:01:39.8]} 25. Kh1
{[%clk 0:01:24.9]} 25... Rfg7 {[%clk 0:01:24.2]} 26. Be4 {[%clk 0:01:18.3]}
26... Qxc3 {[%clk 0:01:19.1]} 27. Bxf3 {[%clk 0:01:08.8]} 27... Qxf3 {[%clk
0:01:18.1]} 28. Qd8+ {[%clk 0:01:04.6]} 28... Rg8 {[%clk 0:01:17.4]} 29. Qf6+
{[%clk 0:01:04.5]} 29... Qxf6 {[%clk 0:01:16.6]} 30. exf6 {[%clk 0:01:04.8]}
30... Bd5 {[%clk 0:01:16.2]} 31. h3 {[%clk 0:01:01.4]} 31... Rg1+ {[%clk
0:01:11.8]} 32. Kh2 {[%clk 0:01:01]} 32... R8g2# {[%clk 0:01:11.9]} 0-1

[Event "*** Titled Tuesday Blitz"]
[Site "Chess.com"]
[Date "2020.10.27"]
[Round "4"]
[White "Paladin61"]
[Black "BillCoe"]
[Result "1-0"]
[WhiteElo "2604"]
[BlackElo "2042"]
[TimeControl "180+1"]
[EndTime "10:36:45 PDT"]
[Termination "Paladin61 won by resignation"]

1. b3 {[%clk 0:03:00.9]} 1... e5 {[%clk 0:02:57.9]} 2. Bb2 {[%clk 0:02:59.6]}
2... d6 {[%clk 0:02:57.9]} 3. e3 {[%clk 0:02:59.1]} 3... f5 {[%clk 0:02:56.8]}
4. d4 {[%clk 0:02:56.4]} 4... e4 {[%clk 0:02:53.4]} 5. c4 {[%clk 0:02:55.8]}
5... Nf6 {[%clk 0:02:53.7]} 6. h4 {[%clk 0:02:51.1]} 6... Be7 {[%clk 0:02:53.2]}
7. Nc3 {[%clk 0:02:43.3]} 7... Be6 {[%clk 0:02:44.1]} 8. Nh3 {[%clk 0:02:40.5]}
8... h6 {[%clk 0:02:36.5]} 9. h5 {[%clk 0:02:34.7]} 9... Bf7 {[%clk 0:02:26.7]}
10. Nf4 {[%clk 0:02:25.7]} 10... Nc6 {[%clk 0:02:19.4]} 11. a3 {[%clk
0:02:17.6]} 11... Qd7 {[%clk 0:02:19.3]} 12. b4 {[%clk 0:01:51.8]} 12... Nd8
{[%clk 0:02:08.8]} 13. d5 {[%clk 0:01:49]} 13... c6 {[%clk 0:02:01.8]} 14. Be2
{[%clk 0:01:46.7]} 14... Qc7 {[%clk 0:01:52.4]} 15. O-O {[%clk 0:01:35.1]} 15...
Nd7 {[%clk 0:01:52]} 16. Rc1 {[%clk 0:01:23.6]} 16... Ne5 {[%clk 0:01:51.3]} 17.
c5 {[%clk 0:01:03.7]} 17... Bf6 {[%clk 0:01:47.3]} 18. dxc6 {[%clk 0:00:53.7]}
18... dxc5 {[%clk 0:01:46.1]} 19. Ncd5 {[%clk 0:00:43.4]} 19... Bxd5 {[%clk
0:01:31.3]} 20. Nxd5 {[%clk 0:00:40.1]} 20... Qxc6 {[%clk 0:01:17.9]} 21. Bb5
{[%clk 0:00:37.2]} 1-0

[Event "*** Titled Tuesday Blitz"]
[Site "Chess.com"]
[Date "2020.10.27"]
[Round "4"]
[White "GMaka"]
[Black "Kazakov_Konstantin"]
[Result "1-0"]
[WhiteElo "2385"]
[BlackElo "2668"]
[TimeControl "180+1"]
[EndTime "10:36:45 PDT"]
[Termination "GMaka won by resignation"]

1. d4 {[%clk 0:03:00.9]} 1... Nf6 {[%clk 0:02:56.5]} 2. Bg5 {[%clk 0:03:00.3]}
2... Ne4 {[%clk 0:02:54.6]} 3. Bf4 {[%clk 0:02:59.9]} 3... d5 {[%clk 0:02:50]}
4. e3 {[%clk 0:03:00]} 4... c6 {[%clk 0:02:48.1]} 5. Bd3 {[%clk 0:02:57]} 5...
Bf5 {[%clk 0:02:46.5]} 6. Nf3 {[%clk 0:02:54.9]} 6... Nd7 {[%clk 0:02:42.6]} 7.
O-O {[%clk 0:02:54]} 7... e6 {[%clk 0:02:42.3]} 8. c4 {[%clk 0:02:53.6]} 8...
Be7 {[%clk 0:02:41.8]} 9. Nc3 {[%clk 0:02:51.1]} 9... Nxc3 {[%clk 0:02:37]} 10.
bxc3 {[%clk 0:02:52]} 10... Bg6 {[%clk 0:02:34.3]} 11. Rb1 {[%clk 0:02:49.9]}
11... b6 {[%clk 0:02:30.4]} 12. Bxg6 {[%clk 0:02:34.5]} 12... hxg6 {[%clk
0:02:27.8]} 13. Qa4 {[%clk 0:02:35]} 13... Qc8 {[%clk 0:02:24.1]} 14. cxd5
{[%clk 0:02:18.5]} 14... exd5 {[%clk 0:02:22.8]} 15. c4 {[%clk 0:02:15.8]} 15...
dxc4 {[%clk 0:02:21.2]} 16. Qxc4 {[%clk 0:02:16.7]} 16... O-O {[%clk 0:02:20.7]}
17. Rfc1 {[%clk 0:02:14.4]} 17... c5 {[%clk 0:02:19.9]} 18. d5 {[%clk
0:02:02.1]} 18... Re8 {[%clk 0:02:18.5]} 19. e4 {[%clk 0:02:01.1]} 19... Bf8
{[%clk 0:02:01]} 20. e5 {[%clk 0:01:56.8]} 20... a6 {[%clk 0:01:58.8]} 21. e6
{[%clk 0:01:48.9]} 21... Nf6 {[%clk 0:01:50.3]} 22. exf7+ {[%clk 0:01:44.3]}
22... Kxf7 {[%clk 0:01:49.2]} 23. Rxb6 {[%clk 0:01:40.7]} 23... Kg8 {[%clk
0:01:46.8]} 24. Rc6 {[%clk 0:01:31.5]} 24... Qg4 {[%clk 0:01:42.8]} 25. h3
{[%clk 0:01:28.6]} 25... Qf5 {[%clk 0:01:41.9]} 26. d6+ {[%clk 0:01:25.5]} 26...
Kh8 {[%clk 0:01:40.1]} 27. Rxc5 {[%clk 0:01:15.5]} 27... Qe4 {[%clk 0:01:38]}
28. Qxe4 {[%clk 0:01:04.8]} 28... Rxe4 {[%clk 0:01:38.9]} 29. Rc8 {[%clk
0:01:00.7]} 29... Re8 {[%clk 0:01:37.8]} 30. Rxa8 {[%clk 0:00:57.5]} 30... Rxa8
{[%clk 0:01:38.7]} 31. Ne5 {[%clk 0:00:53.5]} 31... Kg8 {[%clk 0:01:35.2]} 32.
d7 {[%clk 0:00:52.2]} 1-0

[Event "*** Titled Tuesday Blitz"]
[Site "Chess.com"]
[Date "2020.10.27"]
[Round "4"]
[White "PSvidler"]
[Black "topotun"]
[Result "1-0"]
[WhiteElo "2926"]
[BlackElo "2773"]
[TimeControl "180+1"]
[EndTime "10:36:53 PDT"]
[Termination "PSvidler won on time"]

1. e4 {[%clk 0:03:00.9]} 1... c5 {[%clk 0:02:59.4]} 2. Nf3 {[%clk 0:02:59.4]}
2... e6 {[%clk 0:02:59.5]} 3. d4 {[%clk 0:02:59.3]} 3... cxd4 {[%clk 0:03:00.4]}
4. Nxd4 {[%clk 0:03:00]} 4... Nc6 {[%clk 0:03:00.6]} 5. Nc3 {[%clk 0:02:59.8]}
5... Qc7 {[%clk 0:03:00.9]} 6. Be3 {[%clk 0:02:58.5]} 6... a6 {[%clk 0:03:01]}
7. Qf3 {[%clk 0:02:58]} 7... Nf6 {[%clk 0:03:00.9]} 8. O-O-O {[%clk 0:02:56.9]}
8... Nxd4 {[%clk 0:03:01.1]} 9. Bxd4 {[%clk 0:02:55.5]} 9... e5 {[%clk
0:03:01.5]} 10. Be3 {[%clk 0:02:36.8]} 10... d6 {[%clk 0:03:01]} 11. Bg5 {[%clk
0:02:17.6]} 11... Bg4 {[%clk 0:03:00.2]} 12. Nd5 {[%clk 0:02:17.4]} 12... Qc8
{[%clk 0:03:00.6]} 13. Nxf6+ {[%clk 0:02:06]} 13... gxf6 {[%clk 0:02:59.5]} 14.
Qxf6 {[%clk 0:02:06]} 14... Bxd1 {[%clk 0:02:55.8]} 15. Kxd1 {[%clk 0:02:06.2]}
15... Rg8 {[%clk 0:02:56]} 16. Be3 {[%clk 0:02:03.8]} 16... Qe6 {[%clk
0:02:34.5]} 17. Qxe6+ {[%clk 0:02:03.7]} 17... fxe6 {[%clk 0:02:35.4]} 18. Bc4
{[%clk 0:01:58.4]} 18... Kd7 {[%clk 0:02:20.8]} 19. g3 {[%clk 0:01:57.6]} 19...
b5 {[%clk 0:02:00.8]} 20. Bb3 {[%clk 0:01:56]} 20... Be7 {[%clk 0:01:52.9]} 21.
h4 {[%clk 0:01:54.3]} 21... Rg4 {[%clk 0:01:51.3]} 22. Ke2 {[%clk 0:01:50.5]}
22... Rag8 {[%clk 0:01:20.3]} 23. Kd3 {[%clk 0:01:47.5]} 23... Rc8 {[%clk
0:00:55.5]} 24. c3 {[%clk 0:01:46.6]} 24... Bd8 {[%clk 0:00:41.4]} 25. a4 {[%clk
0:01:44.6]} 25... Kc6 {[%clk 0:00:11.2]} 26. Bxe6 {[%clk 0:01:42]} 1-0

[Event "*** Titled Tuesday Blitz"]
[Site "Chess.com"]
[Date "2020.10.27"]
[Round "4"]
[White "AniJak"]
[Black "MIJuanReyesRosa"]
[Result "1-0"]
[WhiteElo "2292"]
[BlackElo "2067"]
[TimeControl "180+1"]
[EndTime "10:36:53 PDT"]
[Termination "AniJak won by checkmate"]

1. e4 {[%clk 0:03:00.9]} 1... c5 {[%clk 0:02:58.9]} 2. Nc3 {[%clk 0:03:00.5]}
2... a6 {[%clk 0:02:57.8]} 3. g3 {[%clk 0:03:00.3]} 3... b5 {[%clk 0:02:57]} 4.
Bg2 {[%clk 0:03:00.3]} 4... Bb7 {[%clk 0:02:57.1]} 5. Nge2 {[%clk 0:02:59.7]}
5... e6 {[%clk 0:02:57]} 6. d4 {[%clk 0:02:59.3]} 6... cxd4 {[%clk 0:02:55.6]}
7. Nxd4 {[%clk 0:02:59.2]} 7... Qc7 {[%clk 0:02:50.7]} 8. a3 {[%clk 0:02:57.7]}
8... Nf6 {[%clk 0:02:48.4]} 9. O-O {[%clk 0:02:57.2]} 9... d6 {[%clk 0:02:47.2]}
10. h3 {[%clk 0:02:53.7]} 10... Be7 {[%clk 0:02:42.8]} 11. g4 {[%clk 0:02:45.8]}
11... O-O {[%clk 0:02:39.1]} 12. g5 {[%clk 0:02:44.6]} 12... Nfd7 {[%clk
0:02:38.8]} 13. f4 {[%clk 0:02:42.3]} 13... Nc6 {[%clk 0:02:36.8]} 14. Be3
{[%clk 0:02:40.8]} 14... Nb6 {[%clk 0:02:28.5]} 15. b3 {[%clk 0:02:30.3]} 15...
Nxd4 {[%clk 0:02:16.8]} 16. Bxd4 {[%clk 0:02:26.3]} 16... e5 {[%clk 0:02:12.6]}
17. Bxb6 {[%clk 0:02:17.4]} 17... Qxb6+ {[%clk 0:02:11.9]} 18. Kh1 {[%clk
0:02:17.2]} 18... exf4 {[%clk 0:02:04.7]} 19. Nd5 {[%clk 0:02:12.2]} 19... Bxd5
{[%clk 0:02:02.7]} 20. Qxd5 {[%clk 0:02:13.1]} 20... Rac8 {[%clk 0:01:56.6]} 21.
g6 {[%clk 0:01:52.2]} 21... hxg6 {[%clk 0:01:51.7]} 22. Rxf4 {[%clk 0:01:52.6]}
22... Rxc2 {[%clk 0:01:44.1]} 23. Raf1 {[%clk 0:01:52.8]} 23... Bf6 {[%clk
0:01:41.6]} 24. R4f3 {[%clk 0:01:24.1]} 24... Rfc8 {[%clk 0:01:39]} 25. Rxf6
{[%clk 0:01:20.4]} 25... gxf6 {[%clk 0:01:35.6]} 26. Rxf6 {[%clk 0:01:20.5]}
26... Rc1+ {[%clk 0:01:32.4]} 27. Bf1 {[%clk 0:01:20.6]} 27... Qc7 {[%clk
0:00:33.9]} 28. Rxg6+ {[%clk 0:01:20.1]} 28... Kh7 {[%clk 0:00:31.7]} 29. Qh5#
{[%clk 0:01:17.8]} 1-0

[Event "*** Titled Tuesday Blitz"]
[Site "Chess.com"]
[Date "2020.10.27"]
[Round "4"]
[White "Semen_Khanin"]
[Black "Sychev_Klementy"]
[Result "0-1"]
[WhiteElo "2755"]
[BlackElo "2865"]
[TimeControl "180+1"]
[EndTime "10:36:56 PDT"]
[Termination "Sychev_Klementy won by checkmate"]

1. e4 {[%clk 0:03:00.9]} 1... e6 {[%clk 0:02:50.6]} 2. d4 {[%clk 0:03:00.3]}
2... d5 {[%clk 0:02:50.8]} 3. e5 {[%clk 0:03:00.9]} 3... c5 {[%clk 0:02:49.4]}
4. c3 {[%clk 0:03:01.4]} 4... Qb6 {[%clk 0:02:48.7]} 5. Nf3 {[%clk 0:03:01.4]}
5... Nc6 {[%clk 0:02:49.4]} 6. a3 {[%clk 0:03:00.5]} 6... f6 {[%clk 0:02:46.6]}
7. Bd3 {[%clk 0:02:58.9]} 7... g6 {[%clk 0:02:40.4]} 8. O-O {[%clk 0:02:51.7]}
8... fxe5 {[%clk 0:02:33.7]} 9. dxe5 {[%clk 0:02:51.1]} 9... Bg7 {[%clk
0:02:32.3]} 10. Re1 {[%clk 0:02:51]} 10... Nh6 {[%clk 0:02:31]} 11. c4 {[%clk
0:02:43.4]} 11... O-O {[%clk 0:02:25.6]} 12. Nc3 {[%clk 0:02:32.4]} 12... dxc4
{[%clk 0:02:15.8]} 13. Bxc4 {[%clk 0:02:10.7]} 13... Ng4 {[%clk 0:02:15.1]} 14.
Ng5 {[%clk 0:01:55.5]} 14... Ncxe5 {[%clk 0:01:50.1]} 15. Na4 {[%clk 0:01:40.1]}
15... Qc6 {[%clk 0:01:34.2]} 16. Bf1 {[%clk 0:01:16]} 16... Nxf2 {[%clk
0:01:26.6]} 17. Qc2 {[%clk 0:01:15.5]} 17... Neg4 {[%clk 0:01:02]} 18. Nf3
{[%clk 0:00:54.7]} 18... Rxf3 {[%clk 0:00:49.7]} 19. gxf3 {[%clk 0:00:54.7]}
19... Qxf3 {[%clk 0:00:48.3]} 20. Qxc5 {[%clk 0:00:41]} 20... Qh1# {[%clk
0:00:47.4]} 0-1

[Event "*** Titled Tuesday Blitz"]
[Site "Chess.com"]
[Date "2020.10.27"]
[Round "4"]
[White "MustafayevFarid2004"]
[Black "annamaja"]
[Result "1-0"]
[WhiteElo "2471"]
[BlackElo "2297"]
[TimeControl "180+1"]
[EndTime "10:36:58 PDT"]
[Termination "MustafayevFarid2004 won on time"]

1. d4 {[%clk 0:03:00.9]} 1... d5 {[%clk 0:03:00.2]} 2. c4 {[%clk 0:03:00.9]}
2... c6 {[%clk 0:03:00.5]} 3. Nf3 {[%clk 0:03:00.5]} 3... Nf6 {[%clk 0:03:00.7]}
4. g3 {[%clk 0:03:00.9]} 4... e6 {[%clk 0:02:55.3]} 5. Bg2 {[%clk 0:02:59.4]}
5... Nbd7 {[%clk 0:02:55.7]} 6. O-O {[%clk 0:02:59.9]} 6... Bd6 {[%clk
0:02:52.3]} 7. Nc3 {[%clk 0:02:55.8]} 7... O-O {[%clk 0:02:52.3]} 8. Qd3 {[%clk
0:02:55.8]} 8... dxc4 {[%clk 0:02:32]} 9. Qxc4 {[%clk 0:02:56.7]} 9... e5 {[%clk
0:02:32.7]} 10. Rd1 {[%clk 0:02:45.5]} 10... Nb6 {[%clk 0:01:33.6]} 11. Qb3
{[%clk 0:02:28.1]} 11... exd4 {[%clk 0:01:17.1]} 12. Nxd4 {[%clk 0:02:27.7]}
12... Qc7 {[%clk 0:01:06.8]} 13. Ndb5 {[%clk 0:02:10.7]} 13... cxb5 {[%clk
0:01:05]} 14. Nxb5 {[%clk 0:02:11.6]} 14... Qe7 {[%clk 0:00:55.3]} 15. Nxd6
{[%clk 0:02:11.3]} 15... Qxe2 {[%clk 0:00:50.9]} 16. Bg5 {[%clk 0:02:07.3]}
16... Be6 {[%clk 0:00:31]} 17. Qc3 {[%clk 0:02:01.6]} 17... Ng4 {[%clk
0:00:05.6]} 18. Qd4 {[%clk 0:01:56.8]} 18... h6 {[%clk 0:00:04.7]} 19. Be7
{[%clk 0:01:47.6]} 19... Rfe8 {[%clk 0:00:03.9]} 20. Nxe8 {[%clk 0:01:46.5]}
20... Rxe8 {[%clk 0:00:04.8]} 21. Re1 {[%clk 0:01:47.2]} 21... Qb5 {[%clk
0:00:04]} 22. Bc5 {[%clk 0:01:41.7]} 22... Na4 {[%clk 0:00:03.2]} 23. Ba3 {[%clk
0:01:39.2]} 23... Qh5 {[%clk 0:00:01.7]} 24. h3 {[%clk 0:01:36.9]} 24... Nxf2
{[%clk 0:00:01.1]} 25. Qxf2 {[%clk 0:01:36.7]} 1-0

[Event "*** Titled Tuesday Blitz"]
[Site "Chess.com"]
[Date "2020.10.27"]
[Round "4"]
[White "Zq1"]
[Black "BikingBrian"]
[Result "1-0"]
[WhiteElo "2495"]
[BlackElo "2266"]
[TimeControl "180+1"]
[EndTime "10:37:05 PDT"]
[Termination "Zq1 won by resignation"]

1. d4 {[%clk 0:03:00.9]} 1... Nf6 {[%clk 0:02:58.5]} 2. c4 {[%clk 0:02:59.8]}
2... g6 {[%clk 0:02:58.7]} 3. Nc3 {[%clk 0:02:59]} 3... Bg7 {[%clk 0:02:59.4]}
4. e4 {[%clk 0:02:58.7]} 4... d6 {[%clk 0:03:00.1]} 5. Nf3 {[%clk 0:02:58.7]}
5... O-O {[%clk 0:03:00.2]} 6. Be2 {[%clk 0:02:58.8]} 6... Na6 {[%clk
0:02:59.7]} 7. O-O {[%clk 0:02:58.1]} 7... e5 {[%clk 0:02:59.9]} 8. Re1 {[%clk
0:02:58.1]} 8... c6 {[%clk 0:02:57.7]} 9. Bf1 {[%clk 0:02:56.9]} 9... exd4
{[%clk 0:02:57.2]} 10. Nxd4 {[%clk 0:02:56.8]} 10... Ng4 {[%clk 0:02:52.1]} 11.
h3 {[%clk 0:02:52.3]} 11... Qb6 {[%clk 0:02:51.9]} 12. hxg4 {[%clk 0:02:51.8]}
12... Qxd4 {[%clk 0:02:50]} 13. g5 {[%clk 0:02:50.9]} 13... f5 {[%clk
0:02:28.8]} 14. gxf6 {[%clk 0:02:37.1]} 14... Bxf6 {[%clk 0:02:18]} 15. Be3
{[%clk 0:02:36]} 15... Qxd1 {[%clk 0:02:04.2]} 16. Raxd1 {[%clk 0:02:34.6]}
16... Nb4 {[%clk 0:01:52.3]} 17. Rxd6 {[%clk 0:02:09.1]} 17... Nc2 {[%clk
0:01:38.4]} 18. Re2 {[%clk 0:02:04.9]} 18... Nxe3 {[%clk 0:01:36.5]} 19. Rxe3
{[%clk 0:02:04.8]} 19... Be5 {[%clk 0:01:29.3]} 20. Rd1 {[%clk 0:01:55.1]} 20...
Bg4 {[%clk 0:01:26.7]} 21. Be2 {[%clk 0:01:48.4]} 21... Bxe2 {[%clk 0:01:23.1]}
22. Rxe2 {[%clk 0:01:48.6]} 22... c5 {[%clk 0:01:18.1]} 23. Nd5 {[%clk
0:01:43.6]} 23... Bd4 {[%clk 0:01:15.3]} 24. g3 {[%clk 0:01:37.4]} 24... Rf3
{[%clk 0:01:09.5]} 25. Kg2 {[%clk 0:01:36.7]} 25... Raf8 {[%clk 0:01:08.9]} 26.
Rdd2 {[%clk 0:01:33.8]} 26... h5 {[%clk 0:01:06.2]} 27. Nf4 {[%clk 0:01:29]}
27... R3xf4 {[%clk 0:01:01.5]} 28. gxf4 {[%clk 0:01:28.1]} 28... Rxf4 {[%clk
0:01:02.4]} 29. f3 {[%clk 0:01:25.5]} 29... h4 {[%clk 0:00:57.3]} 30. Rxd4
{[%clk 0:01:16.4]} 30... cxd4 {[%clk 0:00:55]} 31. Rd2 {[%clk 0:01:16.6]} 31...
h3+ {[%clk 0:00:49.9]} 32. Kg3 {[%clk 0:01:15.7]} 32... g5 {[%clk 0:00:49.8]}
33. Rxd4 {[%clk 0:01:11.1]} 33... h2 {[%clk 0:00:49.5]} 34. Rd1 {[%clk
0:01:10.7]} 34... Rh4 {[%clk 0:00:49.2]} 35. Rh1 {[%clk 0:01:10]} 35... Kf7
{[%clk 0:00:46.6]} 36. Rxh2 {[%clk 0:01:09.8]} 36... Rf4 {[%clk 0:00:45.8]} 37.
Rh7+ {[%clk 0:01:06.3]} 37... Ke6 {[%clk 0:00:43.8]} 38. Rxb7 {[%clk 0:01:05.5]}
1-0

[Event "*** Titled Tuesday Blitz"]
[Site "Chess.com"]
[Date "2020.10.27"]
[Round "4"]
[White "keepitcoming"]
[Black "gagtemp"]
[Result "0-1"]
[WhiteElo "2540"]
[BlackElo "1972"]
[TimeControl "180+1"]
[EndTime "10:37:06 PDT"]
[Termination "gagtemp won by resignation"]

1. d4 {[%clk 0:03:00.9]} 1... Nf6 {[%clk 0:02:59.2]} 2. c4 {[%clk 0:02:58.3]}
2... g6 {[%clk 0:02:58.9]} 3. Nc3 {[%clk 0:02:58]} 3... Bg7 {[%clk 0:02:55.2]}
4. e4 {[%clk 0:02:57.9]} 4... d6 {[%clk 0:02:55.1]} 5. f3 {[%clk 0:02:58]} 5...
O-O {[%clk 0:02:54.7]} 6. Nge2 {[%clk 0:02:58.1]} 6... Nc6 {[%clk 0:02:53.9]} 7.
Be3 {[%clk 0:02:57.4]} 7... e5 {[%clk 0:02:52.6]} 8. d5 {[%clk 0:02:57.1]} 8...
Ne7 {[%clk 0:02:45.7]} 9. Qd2 {[%clk 0:02:55]} 9... c6 {[%clk 0:02:40.1]} 10.
Ng3 {[%clk 0:02:50.2]} 10... cxd5 {[%clk 0:02:38.4]} 11. cxd5 {[%clk 0:02:51.1]}
11... h5 {[%clk 0:02:34.5]} 12. Bg5 {[%clk 0:02:50.2]} 12... Nh7 {[%clk
0:02:32.7]} 13. Bh6 {[%clk 0:02:49.8]} 13... Bd7 {[%clk 0:02:27.6]} 14. Bxg7
{[%clk 0:02:45.2]} 14... Kxg7 {[%clk 0:02:28.5]} 15. Bd3 {[%clk 0:02:45.3]}
15... h4 {[%clk 0:02:26.2]} 16. Nge2 {[%clk 0:02:45.2]} 16... f5 {[%clk
0:02:21.4]} 17. exf5 {[%clk 0:02:28.7]} 17... gxf5 {[%clk 0:02:22.3]} 18. O-O
{[%clk 0:02:28.3]} 18... Kh8 {[%clk 0:02:15.7]} 19. Qh6 {[%clk 0:02:17.1]} 19...
Rg8 {[%clk 0:02:12.3]} 20. Qxh4 {[%clk 0:02:12.5]} 20... Rg7 {[%clk 0:02:03.9]}
21. Ng3 {[%clk 0:02:00.3]} 21... Qg8 {[%clk 0:02:02.9]} 22. Rf2 {[%clk
0:01:53.9]} 22... Ng6 {[%clk 0:01:59.9]} 23. Qh6 {[%clk 0:01:32.4]} 23... Rf8
{[%clk 0:01:41.8]} 24. Re1 {[%clk 0:01:14.8]} 24... Nf4 {[%clk 0:01:36.5]} 25.
Bf1 {[%clk 0:01:13.2]} 25... Rg6 {[%clk 0:01:35.2]} 26. Qh4 {[%clk 0:01:08.1]}
26... Rg5 {[%clk 0:01:29.3]} 27. Kh1 {[%clk 0:00:58]} 27... Qg6 {[%clk
0:01:25.3]} 28. Nce2 {[%clk 0:00:49.4]} 28... Nd3 {[%clk 0:01:21.1]} 0-1

[Event "*** Titled Tuesday Blitz"]
[Site "Chess.com"]
[Date "2020.10.27"]
[Round "4"]
[White "elohunter1999"]
[Black "VitaliyBernadskiy"]
[Result "0-1"]
[WhiteElo "2521"]
[BlackElo "2751"]
[TimeControl "180+1"]
[EndTime "10:37:08 PDT"]
[Termination "VitaliyBernadskiy won by resignation"]

1. e4 {[%clk 0:03:00.9]} 1... e5 {[%clk 0:02:56.8]} 2. Nf3 {[%clk 0:03:00.2]}
2... Nc6 {[%clk 0:02:57.7]} 3. Bc4 {[%clk 0:03:00.3]} 3... Bc5 {[%clk 0:02:57]}
4. c3 {[%clk 0:03:00.2]} 4... Nf6 {[%clk 0:02:57.1]} 5. d3 {[%clk 0:03:00.7]}
5... d6 {[%clk 0:02:56.7]} 6. O-O {[%clk 0:03:00.2]} 6... Bb6 {[%clk 0:02:53.7]}
7. a4 {[%clk 0:02:59.1]} 7... h6 {[%clk 0:02:51]} 8. Re1 {[%clk 0:02:58.1]} 8...
a6 {[%clk 0:02:43.1]} 9. Nbd2 {[%clk 0:02:53]} 9... Ne7 {[%clk 0:02:39.9]} 10.
Nf1 {[%clk 0:02:50.9]} 10... Ng6 {[%clk 0:02:40]} 11. Ng3 {[%clk 0:02:49.4]}
11... O-O {[%clk 0:02:38.3]} 12. h3 {[%clk 0:02:46.5]} 12... Be6 {[%clk
0:02:38.1]} 13. Bxe6 {[%clk 0:02:18.6]} 13... fxe6 {[%clk 0:02:39]} 14. b4
{[%clk 0:02:17.9]} 14... Qe7 {[%clk 0:02:31.5]} 15. Be3 {[%clk 0:02:17.1]} 15...
Rf7 {[%clk 0:02:25.7]} 16. Bxb6 {[%clk 0:02:12.3]} 16... cxb6 {[%clk 0:02:26.6]}
17. d4 {[%clk 0:02:12.5]} 17... Nd7 {[%clk 0:02:15.4]} 18. Re3 {[%clk
0:02:05.5]} 18... Raf8 {[%clk 0:02:12.9]} 19. Ra2 {[%clk 0:01:54.6]} 19... Nf4
{[%clk 0:02:12.3]} 20. dxe5 {[%clk 0:01:50.7]} 20... Nxe5 {[%clk 0:02:08]} 21.
Nxe5 {[%clk 0:01:50.3]} 21... dxe5 {[%clk 0:02:08.9]} 22. Kh2 {[%clk 0:01:41.1]}
22... Qg5 {[%clk 0:02:03.2]} 23. Rf3 {[%clk 0:01:35.2]} 23... Rd8 {[%clk
0:01:59.8]} 24. Qe1 {[%clk 0:01:04.3]} 24... h5 {[%clk 0:01:56.3]} 25. Qf1
{[%clk 0:00:49]} 25... h4 {[%clk 0:01:56.3]} 26. Ra1 {[%clk 0:00:18.8]} 26...
Rfd7 {[%clk 0:01:39.4]} 27. Ne2 {[%clk 0:00:05.3]} 27... Rd1 {[%clk 0:01:38.6]}
28. Rxd1 {[%clk 0:00:05.1]} 28... Rxd1 {[%clk 0:01:38.8]} 29. Nxf4 {[%clk
0:00:04.8]} 29... Rxf1 {[%clk 0:01:38.5]} 30. Nxe6 {[%clk 0:00:05.3]} 30... Qc1
{[%clk 0:01:36.3]} 31. Rf8+ {[%clk 0:00:04.1]} 31... Kh7 {[%clk 0:01:36.4]} 0-1